bitfinex/quotes_ETHUSD_20240621
["timestamp","ask_amount","ask_price","bid_price","bid_amount"]
[1718999361532,7.29,3534.5,3533.6,0.867]
[1718999361765,0.49002922,3534.4,3533.6,0.867]
[1718999361969,7.29,3534.5,3533.6,0.867]
[1718999362123,0.49003499,3534.3,3533.6,0.867]
[1718999362319,0.49003499,3534.2,3533.6,0.867]
[1718999362622,0.867,3534.4,3533.6,0.32343]
[1718999362842,0.49003405,3534.3,3533.6,0.32343]
[1718999363161,0.49003405,3534.2,3533.6,0.32343]
[1718999363376,0.49003405,3534.3,3533.6,0.32343]
[1718999363540,0.49003405,3534.1,3533.5,2.3673]
[1718999363723,0.49003405,3534.0,3533.5,2.3673]
[1718999363972,0.49003405,3534.3,3533.5,2.3673]
[1718999364339,0.49003405,3534.3,3533.5,2.952678]
[1718999365029,3.0,3534.4,3533.6,0.867]
[1718999365339,0.49005119,3534.3,3533.6,0.867]
[1718999365539,0.49005119,3534.2,3533.6,0.867]
[1718999365861,0.49005119,3534.1,3533.6,1.2489678]
[1718999366106,3.0,3534.4,3533.8,0.867]
[1718999366365,0.49001225,3534.3,3533.9,0.59790778]
[1718999366568,3.0,3534.4,3534.0,0.867]
[1718999366947,7.29,3535.1,3534.1,2.3849]
[1718999367137,0.48993169,3535.0,3534.2,1.25198078]
[1718999367335,0.48993169,3534.9,3534.2,1.25198078]
[1718999367563,0.48993169,3534.8,3534.3,0.36368808]
[1718999367759,0.867,3535.1,3534.3,0.36368808]
[1718999368270,0.4899468,3535.0,3534.3,0.36368808]
[1718999368563,0.867,3535.1,3534.3,0.36368808]
[1718999368858,0.48995838,3535.0,3534.3,0.36368808]
[1718999369037,0.48995838,3535.0,3534.4,0.36155881]
[1718999369847,1.35695838,3535.1,3534.4,0.36155881]
[1718999370024,0.48995838,3535.0,3534.4,0.36155881]
[1718999371129,0.867,3535.1,3534.4,0.36155881]
[1718999371327,0.48994248,3535.0,3534.4,0.36155881]
[1718999371584,0.48994248,3534.9,3534.4,0.36155881]
[1718999371772,0.48994248,3535.1,3534.5,2.341]
[1718999371928,0.48991329,3535.0,3534.5,2.341]
[1718999372238,3.0,3535.4,3534.5,2.341]
[1718999372568,0.867,3535.3,3534.6,0.2341]
[1718999372774,0.48986715,3535.2,3534.6,0.2341]
[1718999372974,0.867,3535.3,3534.6,0.2341]
[1718999373142,0.48990031,3535.2,3534.6,0.2341]
[1718999373383,0.867,3535.3,3534.7,0.34421]
[1718999373739,0.4899128,3535.2,3534.7,0.34421]
[1718999374065,0.867,3535.3,3534.7,0.34421]
[1718999374481,0.867,3534.9,3534.5,2.341]
[1718999374776,0.867,3534.9,3533.9,2.499]
[1718999376363,0.48997386,3534.8,3533.9,2.499]
[1718999376687,0.867,3534.9,3534.0,0.2499]
[1718999376993,0.48997621,3534.8,3534.0,0.2499]
[1718999377494,1.35701285,3534.7,3534.0,0.2499]
[1718999377792,0.867,3534.7,3534.0,0.2499]
[1718999377994,0.49001267,3534.6,3534.1,0.36159]
[1718999378292,0.867,3534.7,3534.1,0.36159]
[1718999378447,0.49001407,3534.6,3534.1,0.36159]
[1718999378648,0.867,3534.7,3534.1,0.36159]
[1718999378846,0.48809992,3534.6,3534.2,0.286059]
[1718999379043,0.867,3534.7,3534.2,0.286059]
[1718999380252,0.867,3534.7,3533.9,2.499]
[1718999382665,3.0,3535.0,3533.9,2.499]
[1718999383003,0.867,3534.9,3534.1,2.3613]
[1718999383386,3.867,3535.0,3534.1,2.3613]
[1718999383576,3.867,3535.0,3534.2,0.549207]
[1718999383780,3.0,3535.0,3534.3,2.4128]
[1718999387062,3.0,3535.0,3534.4,4.57876]
[1718999387261,3.0,3535.0,3534.4,2.3153]
[1718999387484,3.0,3535.0,3534.6,2.3153]
[1718999392674,0.867,3535.2,3534.6,2.3153]
[1718999393272,0.48984999,3535.1,3534.6,2.3153]
[1718999393502,3.005,3535.5,3534.6,2.3153]
[1718999393676,0.48984447,3535.4,3534.6,2.3153]
[1718999393995,3.005,3535.5,3534.7,2.79878077]
[1718999393996,0.48984447,3535.3,3534.7,2.79878077]
[1718999394208,3.005,3535.5,3534.7,2.4206]
[1718999394391,3.005,3535.5,3534.7,5.55081]
[1718999394392,0.48983244,3535.4,3534.7,5.55081]
[1718999394703,0.48983244,3535.3,3534.8,0.781416]
[1718999394939,0.48983244,3535.4,3534.8,0.781416]
[1718999395108,1.35683244,3535.3,3534.7,2.4206]
[1718999395407,0.48983244,3535.2,3534.7,2.4206]
[1718999395911,0.48989368,3535.1,3534.7,2.4206]
[1718999396107,0.48989368,3535.0,3534.8,0.24206]
[1718999396305,0.867,3535.3,3534.8,0.24206]
[1718999396490,0.48989216,3535.2,3534.8,0.24206]
[1718999396695,0.867,3535.3,3534.9,0.266266]
[1718999396896,0.48983075,3535.2,3534.9,0.266266]
[1718999397230,0.867,3535.3,3534.9,0.266266]
[1718999397392,0.48984492,3535.2,3534.9,0.266266]
[1718999397704,3.005,3535.5,3534.9,0.266266]
[1718999398018,0.48983984,3535.4,3534.9,0.266266]
[1718999398501,0.48983984,3535.3,3534.9,0.266266]
[1718999398707,0.48983984,3535.4,3534.9,0.266266]
[1718999398909,3.872,3535.5,3534.9,0.266266]
[1718999399115,0.48985597,3535.4,3534.9,0.266266]
[1718999399414,0.48985597,3535.3,3534.9,0.266266]
[1718999399717,3.872,3535.5,3535.0,0.4950066]
[1718999399877,0.48982104,3535.4,3535.0,0.4950066]
[1718999400082,3.872,3535.5,3535.0,0.4950066]
[1718999400083,0.48982104,3535.3,3535.0,0.4950066]
[1718999400279,0.48982104,3535.4,3535.1,2.26299]
[1718999400484,0.005,3535.5,3535.4,2.3105]
[1718999400793,0.005,3535.5,3535.4,2.62825]
[1718999401235,0.005,3535.5,3535.4,4.89107]
[1718999401388,0.005,3535.5,3535.4,8.02089]
[1718999402028,0.005,3535.5,3535.4,2.62825]
[1718999402338,0.005,3535.5,3535.4,2.3105]
[1718999403189,0.005,3535.5,3535.4,3.1775]
[1718999403423,0.005,3535.5,3535.4,2.3105]
[1718999404638,0.005,3535.5,3534.4,2.2994]
[1718999404798,0.005,3535.5,3534.7,0.867]
[1718999405323,0.48988592,3535.4,3534.7,0.867]
[1718999405523,0.005,3535.5,3534.7,0.867]
[1718999406030,0.872,3535.5,3534.5,0.456294]
[1718999406330,0.867,3535.3,3534.4,2.2994]
[1718999406651,0.005,3535.5,3534.8,0.867]
[1718999409526,0.005,3535.5,3534.4,2.2994]
[1718999409714,0.48986629,3535.4,3534.6,0.867]
[1718999409954,0.005,3535.5,3534.6,3.13032]
[1718999410128,0.005,3535.5,3534.8,0.867]
[1718999410437,0.005,3535.5,3535.0,0.867]
[1718999410589,0.005,3535.5,3535.1,0.33038]
[1718999410793,0.48986311,3535.4,3534.6,0.867]
[1718999410993,3.0,3535.4,3534.6,0.867]
[1718999411196,0.48986265,3535.3,3534.4,2.4368]
[1718999411422,0.48986265,3535.2,3534.4,3.3038]
[1718999411623,0.48986265,3535.3,3534.4,3.3038]
[1718999411806,0.867,3535.2,3534.4,2.4368]
[1718999412125,0.48986265,3535.1,3534.4,2.4368]
[1718999412632,0.867,3534.6,3533.4,2.3691]
[1718999412847,0.48986265,3534.5,3533.6,0.867]
[1718999413010,0.867,3534.6,3533.6,0.867]
[1718999413197,0.49003672,3534.5,3533.4,2.3691]
[1718999413400,0.49003672,3534.4,3533.4,2.832433]
[1718999413594,0.49003078,3534.3,3533.4,2.832433]
[1718999413808,0.49003078,3534.2,3533.4,2.832433]
[1718999414048,3.0,3534.9,3533.4,2.832433]
[1718999414223,2.10540496,3534.8,3533.5,0.5096663]
[1718999414443,0.49002533,3534.7,3533.5,2.7736863]
[1718999414638,0.49002533,3534.7,3533.5,0.5096663]
[1718999414952,0.49002533,3534.7,3533.6,0.56061993]
[1718999415755,0.49002533,3534.7,3533.4,2.3691]
[1718999416304,2.4274,3534.5,3532.7,2.4097]
[1718999416535,4.82204573,3534.4,3532.7,2.4097]
[1718999416703,2.4274,3534.2,3532.7,2.4097]
[1718999416910,0.49004573,3534.1,3532.7,2.4097]
[1718999417331,1.702,3534.0,3532.7,2.4097]
[1718999417546,1.5519903,3533.9,3532.7,2.4097]
[1718999417722,0.49004573,3533.8,3532.7,2.4097]
[1718999418144,0.49004573,3533.8,3532.3,2.2846]
[1718999418532,3.49004573,3533.8,3532.3,2.2846]
[1718999418728,2.98054573,3533.7,3532.3,2.2846]
[1718999419041,3.87444903,3533.6,3532.3,2.51306]
[1718999419243,4.36465824,3533.6,3531.9,2.2789]
[1718999419557,0.49020921,3533.5,3531.9,4.54394]
[1718999419717,0.49020921,3533.5,3532.0,2.26497]
[1718999419913,0.49020921,3533.5,3532.1,0.888891]
[1718999420438,3.87444903,3533.6,3532.2,2.26486]
[1718999420651,3.0,3533.6,3532.2,4.34487]
[1718999420851,2.4905,3533.7,3532.5,2.26467]
[1718999421013,5.3963,3534.1,3532.4,2.4676]
[1718999421222,0.49014419,3534.0,3532.6,2.2646]
[1718999421420,5.3963,3534.1,3532.7,2.73776]
[1718999421626,0.49013951,3534.0,3532.7,2.73776]
[1718999421834,5.3963,3534.1,3532.8,0.05660317]
[1718999422064,5.3963,3534.1,3532.7,0.47322]
[1718999422362,0.49016089,3534.0,3532.7,0.47322]
[1718999422665,5.3963,3534.1,3532.8,0.273783]
[1718999422826,0.49015387,3534.0,3532.8,0.273783]
[1718999423032,5.3963,3534.1,3532.8,0.273783]
[1718999423383,3.0,3534.1,3532.9,0.02119508]
[1718999423667,3.0,3534.1,3532.8,0.273783]
[1718999423853,3.0,3534.1,3532.9,0.40420283]
[1718999424217,3.0,3534.1,3532.9,2.66861283]
[1718999424990,3.0,3534.1,3532.9,0.40420283]
[1718999425150,3.0,3534.1,3532.7,0.47322]
[1718999425349,2.2726,3534.0,3532.7,0.47322]
[1718999425918,3.0,3534.1,3532.7,2.73776]
[1718999426119,3.0,3534.1,3532.7,0.47322]
[1718999426339,3.0,3534.1,3532.8,2.26448]
[1718999426569,3.0,3534.1,3533.0,2.3303]
[1718999427080,3.0,3534.1,3533.0,4.59464]
[1718999427373,3.0,3534.1,3533.1,2.26427]
[1718999427604,3.0,3534.1,3533.0,4.59464]
[1718999427780,3.0,3534.1,3533.2,2.26423]
[1718999427950,3.0,3534.1,3533.3,0.685887]
[1718999430557,3.0,3534.1,3533.6,2.3939]
[1718999430760,3.0,3534.5,3533.6,2.3939]
[1718999430971,2.4025,3534.4,3533.2,2.3939]
[1718999431205,2.97125,3534.3,3532.3,4.59329]
[1718999431488,2.97125,3534.3,3532.4,2.26474]
[1718999431489,5.4025,3534.2,3532.4,2.26474]
[1718999431642,5.999625,3534.2,3532.5,0.685803]
[1718999431842,0.49017041,3534.1,3532.5,0.685803]
[1718999432182,2.19217041,3534.0,3532.5,0.685803]
[1718999432512,0.49017041,3533.9,3532.5,0.685803]
[1718999432698,0.49017041,3533.9,3532.3,2.3285]
[1718999433409,0.49017041,3533.9,3532.3,4.5933]
[1718999433890,4.702,3534.0,3532.3,4.5933]
[1718999434087,0.49017484,3533.8,3532.3,4.5933]
[1718999434382,0.49017487,3533.7,3532.3,4.5933]
[1718999434579,1.06787125,3533.9,3532.4,0.893823]
[1718999434758,0.49017479,3533.8,3532.4,0.893823]
[1718999435077,0.49017479,3533.7,3532.4,0.893823]
[1718999435285,1.06787125,3533.9,3532.5,0.5487123]
[1718999435491,0.49016742,3533.8,3532.5,0.5487123]
[1718999435686,0.49016742,3533.7,3532.5,0.5487123]
[1718999435879,1.06787125,3533.9,3532.5,0.5487123]
[1718999436180,1.06716043,3533.8,3532.5,0.5487123]
[1718999436383,0.49017331,3533.7,3532.5,0.5487123]
[1718999437155,0.49017331,3533.7,3532.5,2.8133823]
[1718999437367,0.49016388,3533.6,3532.5,2.8133823]
[1718999437653,1.06787125,3533.9,3532.6,2.2646]
[1718999437881,0.49015913,3533.8,3532.7,2.77233523]
[1718999438081,0.49013804,3533.7,3532.7,2.77233523]
[1718999438308,1.06787125,3533.9,3532.7,2.77233523]
[1718999438477,0.49014293,3533.8,3532.7,2.77233523]
[1718999438684,0.49014293,3533.7,3532.7,2.77233523]
[1718999439004,3.0,3534.0,3532.7,2.77233523]
[1718999439183,0.49014582,3533.9,3532.7,2.77233523]
[1718999439357,3.0,3534.0,3532.8,0.55857175]
[1718999439358,0.49014582,3533.8,3532.8,0.55857175]
[1718999439558,0.49014582,3533.7,3533.0,2.26435]
[1718999439760,3.0,3534.0,3533.1,2.26429]
[1718999440062,0.490102,3533.9,3533.1,2.26429]
[1718999440287,3.0,3534.0,3533.2,0.45287]
[1718999440603,0.49006395,3533.9,3533.1,2.26429]
[1718999440893,3.0,3534.0,3533.1,2.26429]
[1718999441104,0.49006728,3533.9,3533.2,0.456079]
[1718999441298,0.4900719,3533.8,3533.2,0.456079]
[1718999441462,3.0,3534.0,3533.2,0.456079]
[1718999441661,0.49007495,3533.9,3533.5,2.26403]
[1718999442001,3.0,3534.0,3533.5,2.26403]
[1718999442215,0.4900577,3533.9,3533.5,2.26403]
[1718999442427,3.0,3534.0,3533.9,2.26378]
[1718999442707,3.0,3534.5,3533.9,2.8124923]
[1718999442853,0.48996957,3534.4,3533.9,2.8124923]
[1718999443060,3.0,3534.5,3533.9,2.8124923]
[1718999443257,3.0,3534.5,3533.9,0.5487123]
[1718999443490,0.4899779,3534.4,3533.7,2.319]
[1718999443668,0.4899779,3534.3,3533.8,2.26385]
[1718999443873,3.0,3534.5,3533.8,2.26385]
[1718999444076,0.48998096,3534.4,3533.9,0.684678]
[1718999444275,2.667,3534.5,3533.9,0.684678]
[1718999444517,0.48998754,3534.4,3533.9,0.684678]
[1718999444705,2.667,3534.5,3533.9,0.684678]
[1718999444892,0.48999047,3534.4,3533.9,0.684678]
[1718999445204,0.48999047,3534.3,3533.7,2.319]
[1718999445415,2.75169047,3534.4,3533.3,2.348]
[1718999445605,2.75169047,3534.4,3533.0,2.26436]
[1718999445805,0.48999047,3534.3,3533.0,4.52872]
[1718999445972,0.48999047,3534.3,3533.1,1.122118]
[1718999446401,0.4900501,3534.2,3533.1,1.122118]
[1718999446600,0.4900501,3534.1,3533.1,3.386388]
[1718999446802,0.4900501,3534.2,3533.2,0.7998688]
[1718999447170,3.0,3534.5,3533.8,2.26378]
[1718999447409,0.48999742,3534.4,3533.8,2.26378]
[1718999447708,3.0,3534.5,3533.9,0.452773]
[1718999448016,3.0,3534.5,3533.8,2.26378]
[1718999448364,3.0,3534.5,3533.9,2.26378]
[1718999449366,3.0,3534.5,3533.7,2.26386]
[1718999449596,0.48999934,3534.4,3533.5,2.26398]
[1718999449768,3.0,3534.5,3533.6,0.679233]
[1718999450028,0.49002557,3534.4,3533.6,0.679233]
[1718999450313,3.0,3534.5,3533.6,0.679233]
[1718999450505,0.48999479,3534.4,3533.6,0.679233]
[1718999450810,0.48999479,3534.3,3533.6,0.679233]
[1718999450969,0.48999479,3534.4,3533.7,0.5207313]
[1718999451989,0.48999479,3534.4,3533.5,2.26402]
[1718999452427,3.0,3534.5,3533.5,2.26402]
[1718999452674,3.0,3534.5,3533.3,4.52846]
[1718999452675,0.48999041,3534.4,3533.4,2.26409]
[1718999452927,3.0,3534.5,3533.4,2.26409]
[1718999453133,0.4900009,3534.4,3533.5,0.452839]
[1718999453431,0.49000203,3534.3,3533.5,2.716879]
[1718999453593,3.0,3534.5,3533.5,2.716879]
[1718999453793,0.49001733,3534.4,3533.5,2.716879]
[1718999454019,0.49001733,3534.3,3533.6,0.7245269]
[1718999454204,3.0,3534.5,3533.6,0.7245269]
[1718999454425,3.0,3534.5,3534.4,2.26346]
[1718999454596,0.005,3535.5,3534.7,2.26325]
[1718999454802,0.48985701,3535.4,3535.1,2.26301]
[1718999454996,0.005,3535.5,3535.1,2.26301]
[1718999455444,0.005,3535.5,3535.3,2.26288]
[1718999455590,0.005,3535.5,3535.4,0.452589]
[1718999456313,0.005,3535.5,3535.3,2.26288]
[1718999456921,0.005,3535.5,3535.3,4.52576]
[1718999457855,0.005,3535.5,3535.3,2.26288]
[1718999459812,0.005,3535.5,3535.4,2.26282]
[1718999460433,0.005,3535.5,3535.4,6.78846]
[1718999460623,0.005,3535.5,3535.4,7.87768393]
[1718999461107,0.005,3535.5,3535.4,5.61486393]
[1718999461513,0.005,3535.5,3535.4,1.08922393]
[1718999461720,0.005,3535.5,3535.0,2.26306]
[1718999462247,0.005,3535.5,3534.7,2.311]
[1718999462433,0.005,3535.5,3534.7,4.57426]
[1718999463007,0.005,3535.5,3534.5,4.34337]
[1718999463240,0.005,3535.5,3534.7,2.26327]
[1718999463413,0.005,3535.5,3534.8,0.660664]
[1718999465064,0.005,3535.5,3534.9,2.26311]
[1718999467752,0.005,3535.5,3535.0,2.26306]
[1718999467957,0.005,3535.5,3534.8,2.923814]
[1718999468946,0.005,3535.5,3534.9,2.26314]
[1718999469112,0.005,3535.5,3535.0,0.5186954]
[1718999469307,0.005,3535.5,3535.2,2.26291]
[1718999469518,0.005,3535.5,3535.4,2.26282]
[1718999469835,0.005,3535.5,3535.4,4.52564]
[1718999470954,0.005,3535.5,3535.4,6.78846]
[1718999471169,0.005,3535.5,3535.4,9.86895143]
[1718999471514,0.005,3535.5,3535.4,10.41895143]
[1718999471941,0.005,3535.5,3535.4,9.86895143]
[1718999472151,0.005,3535.5,3535.4,9.68613143]
[1718999474655,0.005,3535.5,3535.4,7.42331143]
[1718999475033,0.005,3535.5,3535.4,11.94895143]
[1718999477846,0.005,3535.5,3535.4,9.86895143]
[1718999478155,0.005,3535.5,3535.4,11.94895143]
[1718999479961,0.005,3535.5,3535.4,9.68613143]
[1718999480161,0.005,3535.5,3535.4,2.71439143]
[1718999480555,0.005,3535.5,3535.4,4.97721143]
[1718999480723,0.005,3535.5,3535.4,9.50285143]
[1718999481278,0.005,3535.5,3535.4,7.24003143]
[1718999481437,0.005,3535.5,3535.4,4.97721143]
[1718999481622,0.005,3535.5,3535.4,7.24003143]
[1718999481953,0.005,3535.5,3535.4,9.50285143]
[1718999482527,0.005,3535.5,3535.4,7.24003143]
[1718999484163,0.005,3535.5,3535.4,2.71439143]
[1718999484623,0.005,3535.5,3535.4,0.63439143]
[1718999484945,0.005,3535.5,3535.0,2.5986954]
[1718999485145,0.005,3535.5,3535.0,2.08]
[1718999485748,0.005,3535.5,3535.4,4.34282]
[1718999485956,0.005,3535.5,3535.4,8.86846]
[1718999487767,0.005,3535.5,3535.4,11.13128]
[1718999487967,0.005,3535.5,3535.4,8.86846]
[1718999488168,0.005,3535.5,3535.4,10.224656]
[1718999490150,0.005,3535.5,3535.4,7.961836]
[1718999490554,0.005,3535.5,3535.4,10.224656]
[1718999491449,0.005,3535.5,3535.4,7.961836]
[1718999491656,0.005,3535.5,3535.4,10.224656]
[1718999493055,0.005,3535.5,3535.4,10.774656]
[1718999493257,0.005,3535.5,3535.4,8.694656]
[1718999493550,0.005,3535.5,3535.4,10.224656]
[1718999493754,0.005,3535.5,3535.4,3.619016]
[1718999494501,0.005,3535.5,3535.4,2.26282]
[1718999495373,0.005,3535.5,3535.1,2.26299]
[1718999495556,0.005,3535.5,3535.1,2.26295]
[1718999495973,0.005,3535.5,3535.2,2.26292]
[1718999496177,0.005,3535.5,3535.0,4.34305]
[1718999496419,0.005,3535.5,3535.1,0.660613]
[1718999496995,0.005,3535.5,3534.7,2.26321]
[1718999497160,2.4117,3535.4,3534.7,2.26321]
[1718999497358,2.4117,3535.4,3534.2,2.08]
[1718999497601,2.4117,3535.4,3534.3,2.26352]
[1718999497602,0.48986095,3535.3,3534.3,2.26352]
[1718999497802,3.0,3535.3,3534.4,0.660715]
[1718999498112,2.4117,3535.4,3534.4,2.924145]
[1718999498263,0.48987165,3535.3,3534.4,2.924145]
[1718999498463,3.0,3535.3,3534.5,2.2634]
[1718999498675,2.4117,3535.4,3534.5,0.7267635]
[1718999498897,0.48987014,3535.3,3534.3,2.26352]
[1718999499194,0.48987014,3535.2,3534.1,2.08]
[1718999499398,2.4315,3535.1,3534.1,2.08]
[1718999499605,5.4315,3535.1,3534.0,2.26372]
[1718999499763,5.97465,3535.1,3534.1,2.26364]
[1718999499961,0.48991581,3535.0,3534.1,2.26364]
[1718999500185,3.0,3535.0,3534.1,2.26364]
[1718999500773,3.0,3535.0,3534.2,2.26358]
[1718999500972,2.4315,3535.1,3534.4,2.26346]
[1718999501199,2.4315,3535.1,3534.3,2.26353]
[1718999501400,0.005,3535.5,3534.9,2.26314]
[1718999501695,0.005,3535.5,3534.8,2.2632]
[1718999501899,0.005,3535.5,3534.8,2.923853]
[1718999502127,0.005,3535.5,3534.9,2.26314]
[1718999502711,0.005,3535.5,3535.0,2.26305]
[1718999502999,0.005,3535.5,3534.8,0.660653]
[1718999503320,0.005,3535.5,3534.9,2.26314]
[1718999503605,0.005,3535.5,3535.0,2.7817813]
[1718999504393,2.3951,3535.4,3534.2,0.452736]
[1718999504584,2.3951,3535.4,3534.2,2.716326]
[1718999504903,0.48988988,3535.3,3534.2,0.452736]
[1718999505231,3.0,3535.3,3534.3,0.2716386]
[1718999505369,3.0,3535.3,3533.9,4.34378]
[1718999505573,2.3666,3535.1,3533.5,4.344]
[1718999505878,0.48994222,3535.0,3533.5,2.264]
[1718999506069,0.28565422,3534.9,3533.6,0.909171]
[1718999506384,0.28565422,3534.9,3533.7,2.2639]
[1718999507502,0.28565422,3534.9,3533.6,2.26397]
[1718999507714,3.0,3535.0,3533.5,2.08]
[1718999508011,2.3666,3535.1,3534.4,2.26346]
[1718999508213,2.3666,3535.1,3534.5,2.26339]
[1718999508519,0.005,3535.5,3534.5,2.26339]
[1718999508520,2.2647,3535.5,3534.7,2.26327]
[1718999508677,2.2647,3535.5,3534.8,0.452666]
[1718999509010,2.2647,3535.5,3534.7,2.26326]
[1718999510502,2.2647,3535.5,3534.5,4.34333]
[1718999511084,2.2647,3535.5,3534.7,2.26326]
[1718999513109,1.9317,3535.5,3534.7,2.26326]
[1718999513274,1.9317,3535.5,3534.8,0.660659]
[1718999513473,1.5987,3535.5,3534.8,0.660659]
[1718999517201,1.5987,3535.5,3534.5,2.08]
[1718999518277,1.5987,3535.5,3534.0,2.26366]
[1718999518594,1.5987,3535.5,3533.9,2.26372]
[1718999518595,1.5987,3535.5,3534.1,2.08]
[1718999518801,1.5987,3535.5,3534.1,4.34365]
[1718999519107,1.75857,3535.5,3534.2,0.660737]
[1718999519915,0.4898563,3535.4,3534.2,0.660737]
[1718999520079,1.75857,3535.5,3534.2,0.660737]
[1718999520277,0.48988268,3535.4,3534.2,0.660737]
[1718999520533,1.5987,3535.5,3534.4,2.26346]
[1718999520677,1.5987,3535.5,3534.3,2.26352]
[1718999521078,0.48986513,3535.4,3534.3,2.26352]
[1718999521274,1.5987,3535.5,3534.3,2.26352]
[1718999521518,1.5987,3535.5,3534.8,2.2632]
[1718999521714,3.0,3535.9,3535.1,2.263]
[1718999521898,5.352,3535.9,3535.1,2.263]
[1718999522215,2.352,3535.9,3535.2,0.05656258]
[1718999522414,2.352,3535.9,3535.3,2.75938852]
[1718999522638,7.29,3536.0,3535.3,2.75938852]
[1718999522924,2.304,3536.4,3535.6,2.26266]
[1718999523221,2.304,3536.4,3535.5,2.26273]
[1718999523537,2.254,3536.4,3535.6,0.70455663]
[1718999524031,2.254,3536.4,3535.6,2.96724663]
[1718999524313,2.254,3536.4,3535.7,0.05655631]
[1718999524616,2.254,3536.4,3535.8,0.05655471]
[1718999525124,3.0,3536.6,3535.6,0.70455663]
[1718999525279,3.0,3536.6,3535.7,0.50473766]
[1718999525486,3.0,3536.6,3535.9,2.2625]
[1718999525680,3.0,3536.6,3535.7,2.76730766]
[1718999525879,0.48969474,3536.5,3535.7,2.76730766]
[1718999526231,3.0,3536.6,3535.7,2.76730766]
[1718999526484,1.51869517,3536.5,3535.4,2.08]
[1718999526646,2.3712,3536.4,3535.4,2.08]
[1718999527045,5.3712,3536.4,3535.4,2.08]
[1718999527351,2.3712,3536.4,3535.4,4.3428]
[1718999527551,3.0,3536.3,3535.4,2.08]
[1718999527763,2.3712,3536.4,3535.4,2.514289]
[1718999528117,2.3712,3536.4,3535.4,4.777109]
[1718999528641,2.3712,3536.4,3535.4,2.514289]
[1718999531204,2.4025,3537.0,3535.6,2.26268]
[1718999531351,0.48971507,3536.9,3535.7,0.4776969]
[1718999531530,0.48971507,3536.8,3535.4,2.08]
[1718999531857,0.48971507,3536.8,3534.8,4.67887]
[1718999531858,2.3197,3536.7,3534.9,2.2631]
[1718999532017,0.48971507,3536.6,3535.0,4.34308]
[1718999532243,4.02168507,3536.6,3535.0,2.982195]
[1718999532460,0.48971507,3536.5,3535.3,2.26283]
[1718999532688,0.63413851,3536.4,3535.4,2.26282]
[1718999532823,0.63413851,3536.4,3535.0,2.982195]
[1718999532824,1.12388743,3536.4,3535.3,2.26288]
[1718999533037,0.48974892,3536.3,3535.3,2.26288]
[1718999533236,3.0,3536.6,3535.4,2.08]
[1718999533533,0.48972516,3536.5,3535.8,2.26255]
[1718999533738,2.3197,3536.7,3535.8,4.34255]
[1718999533965,0.48969549,3536.6,3535.8,2.08]
[1718999534171,3.0,3536.6,3535.8,2.08]
[1718999534535,0.53197,3536.6,3535.8,2.08]
[1718999534737,3.53197,3536.6,3535.4,2.2628]
[1718999534937,3.53197,3536.6,3535.5,2.26275]
[1718999534938,0.48970756,3536.5,3535.5,2.26275]
[1718999535184,3.53197,3536.6,3535.6,2.26263]
[1718999535466,3.53197,3536.6,3535.6,2.923168]
[1718999535836,3.53197,3536.6,3535.7,2.26261]
[1718999537076,3.53197,3536.6,3535.7,2.26258]
[1718999537440,0.48969317,3536.5,3535.7,2.26258]
[1718999537658,3.0,3536.6,3535.9,2.2625]
[1718999537873,2.3197,3536.7,3535.9,3.0073308]
[1718999538041,0.48968927,3536.6,3535.9,3.0073308]
[1718999538371,3.0,3536.6,3536.0,0.05649345]
[1718999538675,0.48968925,3536.5,3535.7,2.26258]
[1718999538838,3.0,3536.6,3535.7,3.4420578]
[1718999539042,0.4896979,3536.5,3535.7,3.4420578]
[1718999539244,3.0,3536.6,3535.5,2.26271]
[1718999539478,0.48969881,3536.5,3535.6,2.26268]
[1718999539645,3.0,3536.6,3535.6,2.26268]
[1718999539845,0.48969886,3536.5,3535.6,2.26268]
[1718999540081,3.0,3536.6,3535.7,2.26257]
[1718999540278,0.48969535,3536.5,3535.8,2.26256]
[1718999540504,3.0,3536.6,3535.8,2.26256]
[1718999540787,2.3197,3536.7,3535.9,2.2625]
[1718999540983,0.48967566,3536.6,3535.9,2.2625]
[1718999541148,3.0,3536.6,3535.9,2.2625]
[1718999541577,2.3197,3536.7,3535.8,2.26256]
[1718999541886,0.48967927,3536.6,3535.8,2.26256]
[1718999542091,0.48969542,3536.5,3535.6,2.26269]
[1718999542392,3.0,3536.6,3535.6,2.26269]
[1718999542583,0.48969786,3536.5,3535.6,2.26269]
[1718999542757,0.48969786,3536.5,3535.5,2.26275]
[1718999542957,0.48969892,3536.4,3535.5,2.26275]
[1718999543180,0.64682929,3536.5,3535.5,2.26275]
[1718999543490,0.48970602,3536.4,3535.7,2.26262]
[1718999543689,3.0,3536.6,3535.7,2.26262]
[1718999543866,0.48970696,3536.5,3535.7,2.26262]
[1718999544067,0.48970696,3536.4,3535.7,2.26262]
[1718999544267,3.0,3536.6,3535.7,2.26262]
[1718999544465,0.48970553,3536.5,3535.7,2.26262]
[1718999544670,3.53197,3536.6,3535.4,2.08]
[1718999545017,0.48969366,3536.5,3535.4,2.08]
[1718999545310,3.53197,3536.6,3535.4,2.08]
[1718999545311,0.48972097,3536.4,3535.4,2.08]
[1718999545457,0.48972097,3536.3,3535.4,2.08]
[1718999545685,0.48972097,3536.3,3535.4,4.34279]
[1718999546375,0.48972097,3536.3,3535.5,2.26271]
[1718999547660,0.48972097,3536.3,3535.4,4.34281]